[Event "VII Totalizator Sportowy 2022"]
[Site "Bydgoszcz"]
[Date "2022.06.28"]
[Round "4.8"]
[White "Navaratnam, Rohan Shan Tze"]
[Black "Hnydiuk, Aleksander"]
[Result "1/2-1/2"]
[ECO "A32"]
[WhiteElo "2071"]
[BlackElo "2394"]
[Annotator "TA"]
[PlyCount "57"]
[EventDate "2022.06.25"]
[EventType "swiss"]
[EventCountry "POL"]
[SourceTitle "playchess.com"]
[Source "ChessBase"]
[SourceQuality "1"]
[TimeControl "40/5400+30:1800+30"]

{[%evp 23,57,7,17,0,0,0,0,0,0,-11,0,0,0,0,12,9,12,0,0,0,0,0,0,0,0,0,0,0,0,0,0,0,0,-4,0,0]} 1. d4 Nf6 {[%emt 0:03:01]} 2. c4 {[%emt 0:00:13]} c5 {[%emt 0:00:12]} 3. Nf3 {[%emt 0:00:20]} cxd4 {[%emt 0:00:00]} 4. Nxd4 {[%emt 0:00:05]} e6 5. g3 {[%emt 0:03:00]} d5 {[%emt 0:00:49]} 6. Bg2 {[%emt 0:00:07]} e5 {[%emt 0:00:04]} 7. Nf3 {[%emt 0:00:12]} d4 {[%emt 0:00:06]} 8. O-O {[%emt 0:00:09]} Nc6 {[%emt 0:00:03]} 9. e3 {[%emt 0:00:07]} Be7 {[%emt 0:00:00]} 10. exd4 {[%emt 0:03:16]} exd4 {[%emt 0:00:17]} 11. Bf4 {[%emt 0:00:30]} O-O 12. Ne5 {[%emt 0:04:23]} Qb6 {[%emt 0:00:59] The position is equal.} 13. Qb3 {[%emt 0:02:48] 13.Re1 is more advanced technology. E01: Catalan: Early deviations.} Na5 {[%emt 0:01:06]} 14. Qxb6 {[%emt 0:08:48]} axb6 {[%emt 0:00:35]} 15. Nd2 {[%emt 0:00:06] Against Nb3} Nh5 {[%emt 0:00:43]} 16. Nb3 {[%emt 0:04:27] [#]} Bd6 $146 {[%emt 0:48:54][%cal Og7g5] ...g5! is the strong threat.} ({Predecessor:} 16... Bf6 17. Nxa5 Rxa5 18. Nd3 Bf5 19. Rfd1 Nxf4 20. gxf4 Rc8 21. b3 Rc7 22. a4 g6 {½-½ (41) Laznicka,V (2676)-Andreikin,D (2720) Skopje 2015}) 17. Bd5 $1 {[%emt 0:29:07]} ({Much worse is} 17. Nxd4 g5 18. Nb5 Bb8 19. Bxg5 Bxe5 $15) 17... Nxf4 {[%emt 0:21:53]} 18. gxf4 {[%emt 0:01:08]} Nxb3 {[%emt 0:09:57]} 19. axb3 {[%emt 0:00:05]} Ra5 {[%emt 0:01:08]} 20. Rfe1 {[%emt 0:15:41]} Bb4 {[%emt 0:01:39]} 21. Rxa5 {[%emt 0:00:55]} bxa5 {[%emt 0:00:18]} 22. Re4 {[%emt 0:01:04]} d3 {[%emt 0:01:47]} 23. Nxd3 {[%emt 0:05:08]} Bf5 {[%emt 0:00:03]} 24. Re3 {[%emt 0:00:33][%cal Be4e3,Be3d3,Bd3d7][%mdl 32]} Bxd3 {[%emt 0:00:13]} 25. Rxd3 {[%emt 0:00:02]} b6 {[%emt 0:00:32]} 26. Bf3 {[%emt 0:02:55]} Re8 {[%emt 0:01:04]} 27. Rd7 {[%emt 0:00:23]} g6 {[%emt 0:00:23]} 28. f5 {[%emt 0:02:57]} Kg7 {[%emt 0:02:16]} 29. fxg6 {An interesting draw.  Weighted Error Value: White=0.03 (flawless) /Black=0.02 (flawless)} 1/2-1/2

[Event "VII Totalizator Sportowy 2022"]
[Site "Bydgoszcz"]
[Date "2022.06.28"]
[Round "4.9"]
[White "Paprocki, Antoni"]
[Black "Lewtak, Damian"]
[Result "0-1"]
[ECO "A50"]
[WhiteElo "1851"]
[BlackElo "2384"]
[Annotator "TA"]
[PlyCount "116"]
[EventDate "2022.06.25"]
[EventType "swiss"]
[EventCountry "POL"]
[SourceTitle "playchess.com"]
[Source "ChessBase"]
[SourceQuality "1"]
[TimeControl "40/5400+30:1800+30"]

{[%evp 13,116,17,17,-2,2,0,5,0,0,0,36,18,39,29,38,41,44,-35,-39,-45,-44,-42,-32,-35,-24,-76,-87,-119,-120,-112,-123,-118,-114,-127,-91,-89,-88,-92,-106,-106,-5,-10,-10,-42,-39,-62,-70,-70,-58,-96,-87,-102,-105,-137,-137,-146,-140,-151,-155,-133,-79,-80,-62,-75,-79,-251,-165,-308,-241,-212,-187,-335,-319,-374,-358,-338,-337,-337,-337,-337,-305,-346,-79,-81,0,-339,0,-245,-81,-664,-603,-1446,-1652,-1393,-779,-1508,-1425,-1316,-584,-5165,-5072,-4614,-4610,-5114,-5102]} 1. d4 {[%emt 0:00:03]} Nf6 {[%emt 0:03:20]} 2. c4 b6 {[%emt 0:00:40]} 3. Nf3 {[%emt 0:02:36]} Bb7 {[%emt 0:02:18]} 4. Bf4 {[%emt 0:02:37]} e6 5. e3 Be7 {[%emt 0:02:32]} 6. Nc3 {[%emt 0:03:14]} Nh5 {[%emt 0:04:40]} 7. Bg3 {[%emt 0:01:26]} d6 {[%emt 0:03:10]} 8. Bd3 {[%emt 0:02:19] 8.Bd3 was played by the boomers. E12: Queen's Indian: Unusual White 4th moves, 4 a3, 4 Nc3 Bb7 5 a3 and 4 Nc3 Bb7 .} Nd7 {[%emt 0:00:19]} 9. Qc2 {[%emt 0:03:54]} g6 {[%emt 0:02:00]} 10. O-O-O {[%emt 0:02:53] The position is equal.} a6 {[%emt 0:08:45]} 11. Kb1 {[%emt 0:05:47] [#]} c6 $146 {[%emt 0:01:40][%cal Bc7c6,Bc6c5][%mdl 32]} ({Predecessor:} 11... Rc8 12. Rhe1 O-O 13. h3 {½-½ (13) Demchenko,A (2610)-Meier,G (2628) Chess.com INT 2021}) 12. Be2 {[%emt 0:19:25]} Nxg3 {[%emt 0:15:33]} 13. hxg3 {[%emt 0:00:08]} Qc7 {[%emt 0:00:06]} 14. e4 {[%emt 0:09:14]} O-O-O {[%emt 0:05:10][%cal Be8c8,Bc8b8,Bb8a8][%mdl 32]} 15. b4 {[%emt 0:09:05]} (15. Qd2 $14) 15... Bf6 {[%emt 0:02:39]} 16. Qb3 {[%emt 0:01:31]} c5 {[%emt 0:04:19]} 17. a3 {[%emt 0:01:00]} Kb8 {[%emt 0:02:04]} 18. Ka2 {[%emt 0:17:21]} Ka8 {[%emt 0:05:49]} 19. e5 {[%emt 0:01:46]} (19. Rd2 $11 {keeps the balance.}) 19... cxd4 $17 {[%emt 0:07:41]} 20. exf6 {[%emt 0:00:12]} dxc3 {[%emt 0:00:13]} 21. Qxc3 {[%emt 0:00:24]} e5 $1 {[%emt 0:00:15]} 22. Nd2 {[%emt 0:08:11]} Nxf6 {[%emt 0:02:10]} 23. Bf3 {[%emt 0:00:13]} Rhe8 {[%emt 0:05:16]} 24. Bxb7+ {[%emt 0:02:05]} Qxb7 {[%emt 0:00:05]} 25. Qf3 {[%emt 0:00:16]} Qxf3 {[%emt 0:00:32]} 26. gxf3 {[%emt 0:00:41]} e4 {[%emt 0:04:16]} (26... h5 $17) 27. Nxe4 $11 {[%emt 0:02:26]} Nxe4 {[%emt 0:00:20]} 28. fxe4 {[%emt 0:00:02]} Rxe4 {[%emt 0:00:09][%mdl 4096] Endgame KRR-KRR} 29. Rhe1 {[%emt 0:03:16] Prevents Re2+.} Re6 {[%emt 0:02:01]} 30. Rxe6 {[%emt 0:00:33]} fxe6 $15 {[%emt 0:00:05] KR-KR} 31. f4 {[%emt 0:01:20]} Kb7 {[%emt 0:00:25]} 32. Kb3 {[%emt 0:00:29]} Kc7 {[%emt 0:01:59]} 33. Kc3 {[%emt 0:00:29]} Rf8 {[%emt 0:03:12]} 34. Rh1 {[%emt 0:00:45]} h5 {[%emt 0:01:30]} 35. Kd4 {[%emt 0:00:03]} Rf5 {[%emt 0:01:00]} 36. Ke4 {[%emt 0:01:50]} d5+ {[%emt 0:00:42]} (36... Kd7 $142 37. Kf3 b5 38. cxb5 Rxb5) 37. cxd5 $17 {[%emt 0:00:04]} exd5+ {[%emt 0:00:09]} 38. Kd4 {[%emt 0:00:08]} Kd6 {[%emt 0:00:16]} 39. Re1 $2 {[%emt 0:01:33]} (39. Kd3 $17 {was forced.}) 39... h4 {[%emt 0:00:34]} 40. Rg1 {[%emt 0:00:00]} (40. gxh4 $142 Rxf4+ 41. Kd3) 40... hxg3 {[%emt 0:00:00]} 41. Rxg3 {[%emt 0:01:17]} Rxf4+ {[%emt 0:00:17]} 42. Ke3 {[%emt 0:06:59]} (42. Kc3 $142) 42... Rf6 $19 {[%emt 0:00:07]} ({Inferior is} 42... Re4+ 43. Kd3 $17) 43. Kd4 {[%emt 0:00:10] [#]} a5 $1 {[%emt 0:01:54]} 44. bxa5 {[%emt 0:11:48]} bxa5 {[%emt 0:00:06]} 45. Rg5 {[%emt 0:00:47]} Kc6 {[%emt 0:00:44]} ({Wrong is} 45... Rf4+ $2 46. Kc3 $19) 46. Rg4 {[%emt 0:01:02]} Rd6 {[%emt 0:01:25]} 47. Rg5 {[%emt 0:03:08]} Kb5 $2 {[%emt 0:00:34]} (47... Re6 $19 {Threatens to win with ...a4.} 48. Rg1 Re4+ 49. Kc3 Kc5 50. Rxg6 Re3+ 51. Kb2 a4) 48. Rg4 $17 {[%emt 0:00:19]} Kc6 $2 {[%emt 0:01:15][%mdl 8192]} (48... a4 $17) 49. Rg5 $1 $19 {[%emt 0:00:31]} Rf6 $2 {[%emt 0:03:35]} (49... Re6 $19 {aiming for ...a4.} 50. Rg1 Re4+ 51. Kc3 Kc5 52. Rxg6 Re3+ 53. Kb2 a4) 50. Rg3 $2 {[%emt 0:00:34]} (50. Rg4 $11) 50... a4 $2 {[%emt 0:01:45]} (50... Re6 $19 {is more deadly. White must now prevent ...a4.} 51. Rg1 Re4+ 52. Kc3 Re3+ 53. Kb2 Re6) 51. Rc3+ $2 {[%emt 0:00:16][%mdl 8192]} (51. Rg4 $17) 51... Kd6 {[%emt 0:00:09] Hoping for ...Rf4+. Black is clearly winning.} 52. Rg3 {[%emt 0:00:06]} Rf4+ {[%emt 0:00:28]} 53. Ke3 {[%emt 0:01:34] [#]} Rh4 $1 {[%emt 0:00:23]} 54. Kd3 {[%emt 0:02:29]} Kc5 {[%emt 0:03:45]} 55. Kc3 {[%emt 0:00:24]} Rh6 {[%emt 0:01:19]} (55... d4+ $142 56. Kd3 Rh5) 56. Rg5 {[%emt 0:02:02]} Rh3+ {[%emt 0:00:28]} 57. Kb2 {[%emt 0:00:02]} Rb3+ {[%emt 0:00:12]} 58. Ka2 {[%emt 0:00:03]} Rb6 {[%emt 0:00:13] Weighted Error Value: White=0.68/Black=0.41} 0-1

[Event "VII Totalizator Sportowy 2022"]
[Site "Bydgoszcz"]
[Date "2022.06.28"]
[Round "4.10"]
[White "Golubka, Petro"]
[Black "Fiedorek, Michal"]
[Result "1/2-1/2"]
[ECO "B18"]
[WhiteElo "2380"]
[BlackElo "2315"]
[Annotator "TA"]
[PlyCount "68"]
[EventDate "2022.06.25"]
[EventType "swiss"]
[EventCountry "POL"]
[SourceTitle "playchess.com"]
[Source "ChessBase"]
[SourceQuality "1"]
[TimeControl "40/5400+30:1800+30"]

{[%evp 9,68,5,4,-6,-10,-14,-14,-10,-5,-14,-12,-42,-13,-22,-24,-28,-10,-11,-21,-12,0,0,31,14,13,12,34,16,39,22,8,0,0,0,33,39,52,12,30,0,0,0,0,0,0,0,0,0,-12,-12,-26,-9,-1,-28,0,-2,-18,-20,-26,-30,0]} 1. e4 {[%emt 0:04:49]} c6 {[%emt 0:00:05]} 2. d4 {[%emt 0:00:47]} d5 {[%emt 0:00:05]} 3. Nd2 {[%emt 0:00:50]} dxe4 4. Nxe4 {[%emt 0:00:05]} Bf5 {[%emt 0:00:31]} 5. Nc3 {[%emt 0:00:07]} Nf6 {[%emt 0:01:52]} 6. Bc4 {[%emt 0:00:17] B18: Classical Caro-Kann: 4...Bf5 sidelines.} e6 {[%emt 0:00:40]} 7. Nf3 Bd6 {[%emt 0:02:38]} 8. h3 {[%emt 0:01:46] [#] The position is equal.} h6 $146 {[%emt 0:00:25]} ({Predecessor:} 8... O-O 9. Bg5 Nbd7 10. O-O Qc7 11. Qe2 h6 12. Be3 Nd5 13. Nxd5 exd5 14. Bd3 Bxd3 15. Qxd3 {0-1 (34) Dhemrait,S-Towers,N (1849) England 2015}) 9. Qe2 {[%emt 0:00:46]} Nbd7 {[%emt 0:07:10]} 10. a3 {[%emt 0:01:46]} Qc7 {[%emt 0:07:27]} 11. Be3 {[%emt 0:01:18]} Nb6 {[%emt 0:05:44]} 12. Bd3 {[%emt 0:02:51]} Bxd3 {[%emt 0:00:26]} 13. Qxd3 {[%emt 0:00:43]} Nbd5 {[%emt 0:00:27]} 14. O-O g5 {[%emt 0:18:17]} 15. Nxd5 {[%emt 0:06:25]} cxd5 {[%emt 0:05:55]} 16. b3 {[%emt 0:01:52]} Rc8 {[%emt 0:06:16]} 17. Rfc1 {[%emt 0:08:12]} Qc3 {[%emt 0:01:58]} 18. Qb5+ {[%emt 0:00:26]} Qc6 {[%emt 0:00:16]} (18... Ke7 {looks sharper.} 19. Bd2 Qc6 20. Qd3 Ne4) 19. a4 {[%emt 0:00:24]} O-O {[%emt 0:08:09]} 20. Qf1 {[%emt 0:03:43]} Bb8 {[%emt 0:05:32]} 21. c4 {[%emt 0:01:41]} dxc4 {[%emt 0:00:42]} 22. bxc4 {[%emt 0:07:46]} Qe4 {[%emt 0:00:27]} 23. Nd2 {[%emt 0:18:25]} Qg6 {[%emt 0:02:30]} 24. g3 {[%emt 0:02:03][%cal Bg2g3,Bg3g4][%mdl 32]} (24. Rcb1 $5 {[%cal Rb1b7]}) 24... Nh5 {[%emt 0:04:58]} 25. Rab1 {[%emt 0:08:04]} f5 {[%emt 0:00:44]} 26. Qd3 {[%emt 0:00:39]} ({Reject} 26. Rxb7 f4 27. gxf4 gxf4+ 28. Qg2 Qxg2+ 29. Kxg2 fxe3 30. fxe3 Ng7 $17) 26... Qf7 {[%emt 0:07:06] aiming for ...f4.} 27. d5 {[%emt 0:05:59]} e5 {[%emt 0:02:22][%cal Be6e5,Be5e4][%mdl 32] White should prevent ...f4.} 28. g4 {[%emt 0:03:06]} e4 {[%emt 0:03:30]} 29. Qe2 {[%emt 0:05:18]} Nf4 {[%emt 0:03:23]} 30. Bxf4 {[%emt 0:00:43]} Bxf4 {[%emt 0:00:44]} 31. Rc3 {[%emt 0:03:24]} Be5 {[%emt 0:00:51]} (31... Rc7 $5 {[%cal Rf7f6]}) 32. Rcb3 {[%emt 0:00:21]} fxg4 {[%emt 0:00:35]} 33. Nxe4 {[%emt 0:04:10]} Qf4 {[%emt 0:00:19] [#] ( -> ...Qh2+)} 34. Qxg4 {[%emt 0:02:33] Hoping for Qe6+. Chess con chili.} Qxg4+ {[%emt 0:04:07] Weighted Error Value: White=0.07 (flawless) /Black=0.07 (flawless)} 1/2-1/2

[Event "VII Totalizator Sportowy 2022"]
[Site "Bydgoszcz"]
[Date "2022.06.28"]
[Round "4.11"]
[White "Rudzinska, Michalina"]
[Black "Kucza, Karol"]
[Result "0-1"]
[ECO "C24"]
[WhiteElo "2236"]
[BlackElo "2305"]
[Annotator "TA"]
[PlyCount "103"]
[EventDate "2022.06.25"]
[EventType "swiss"]
[EventCountry "POL"]
[SourceTitle "playchess.com"]
[Source "ChessBase"]
[SourceQuality "1"]
[TimeControl "40/5400+30:1800+30"]

{[%evp 9,103,8,18,5,12,31,20,0,0,-17,-17,-12,-11,-13,14,14,14,0,12,35,20,0,0,0,12,5,13,0,13,0,0,0,0,-10,-7,-36,0,0,0,0,0,0,0,-116,-115,-116,-127,-120,-120,-120,-120,-122,-120,-124,-120,-127,-121,-127,-127,-122,-122,-289,-288,-291,-277,-268,-247,-301,-288,-352,-351,-343,-329,-273,-281,-458,-450,-450,-410,-270,-268,-356,-382,-5758,-5311,-4888,-1130,-5758,-5297,-5758,-5758,-5758,-5758,-5758,-5310,-1100]} 1. e4 {[%emt 0:00:03]} e5 {[%emt 0:00:07]} 2. Bc4 {[%emt 0:00:07]} Nf6 {[%emt 0:00:20]} 3. d3 c6 {[%emt 0:02:20]} 4. Nf3 {[%emt 0:00:19]} d5 {[%emt 0:00:04]} 5. Bb3 {[%emt 0:00:08]} a5 {[%emt 0:00:04]} 6. a4 {[%emt 0:00:10] C24: Bishop's Opening: 2...Nf6.} (6. Nxe5 $2 a4 7. Bxd5 cxd5 8. exd5 Nxd5 $19) 6... Bb4+ 7. c3 {[%emt 0:00:19]} Bd6 {[%emt 0:00:11]} 8. O-O {The position is equal.} dxe4 {[%emt 0:13:01] [#]} 9. Ng5 $146 {[%emt 0:02:23]} ({Predecessor:} 9. dxe4 O-O 10. Na3 Qe7 11. Qe2 Nbd7 12. Nc4 Bc7 13. Bc2 b6 14. b3 Nc5 15. Ba3 {½-½ (30) Henderson,G (2306)-Konstantinov,M (2401) ICCF email 2017}) 9... O-O {[%emt 0:00:09]} 10. Nxe4 {[%emt 0:00:34]} Nxe4 {[%emt 0:01:10]} 11. dxe4 {[%emt 0:00:02]} Qf6 {[%emt 0:07:50]} 12. Qh5 h6 {[%emt 0:11:14] Prevents Bg5.} 13. Na3 {[%emt 0:20:13]} Be6 {[%emt 0:08:48]} 14. Bxe6 {[%emt 0:03:38]} Qxe6 {[%emt 0:00:07]} 15. Be3 {[%emt 0:04:24]} Nd7 {[%emt 0:00:46][%cal Bb8d7,Bd7c5,Bc5e6,Be6c5,Bc5d3][%mdl 32]} 16. Qe2 {[%emt 0:20:47]} Nc5 {[%emt 0:09:22]} 17. Qc4 {[%emt 0:03:01]} Qe7 {[%emt 0:02:12]} 18. Rfd1 {[%emt 0:01:26][%cal Od1d6] Strongly threatening Rxd6!} Ne6 {[%emt 0:00:13]} 19. Qb3 {[%emt 0:11:18]} Bc5 {[%emt 0:05:23]} 20. Nc4 {[%emt 0:01:41]} Rfd8 {[%emt 0:03:07]} 21. Rxd8+ {[%emt 0:12:14]} (21. Nxe5 $2 Bxe3 22. fxe3 Nc5 23. Rxd8+ Rxd8 $19) 21... Rxd8 {[%emt 0:00:19]} 22. Rd1 {[%emt 0:00:18]} Bxe3 {[%emt 0:09:29]} (22... b5 $5 23. Rxd8+ (23. Nxe5 Bxe3 24. fxe3 Qg5 $17) (23. axb5 cxb5 24. Rxd8+ Qxd8 $11) 23... Qxd8 24. axb5 a4 $15) 23. Nxe3 {[%emt 0:00:54]} Nc5 {[%emt 0:03:10][%csl LRb3,LRe4]} 24. Rxd8+ {[%emt 0:00:15]} Qxd8 $11 {[%emt 0:00:06][%mdl 4096] Endgame KQN-KQN} 25. Qc4 {[%emt 0:00:14]} Nd3 {[%emt 0:00:53]} 26. Qb3 {[%emt 0:04:24]} (26. h4 $11 {remains equal.}) 26... Qh4 $1 $17 {[%emt 0:01:35][%csl LRe4,LRf2]} 27. g3 {[%emt 0:12:54]} Qxe4 {[%emt 0:00:32]} 28. Qxb7 {[%emt 0:00:06]} Qf3 {[%emt 0:03:27]} (28... Qxa4 $2 29. Qc8+ Kh7 30. Qf5+ Kg8 31. Qxd3 $18) 29. Qc8+ {[%emt 0:00:05]} Kh7 {[%emt 0:00:06]} 30. Qf5+ {[%emt 0:00:06]} Qxf5 {[%emt 0:00:04] Black is more active.} 31. Nxf5 {[%emt 0:00:06]} Nxb2 {[%emt 0:00:05] KN-KN} 32. Ne7 {[%emt 0:00:07]} c5 {[%emt 0:05:38]} 33. Nc6 {[%emt 0:00:07][%csl LRa5,LRe5]} Nxa4 {[%emt 0:00:05]} 34. c4 {[%emt 0:00:07]} Kg6 {[%emt 0:02:37]} 35. Nxe5+ $2 {[%emt 0:03:38] Loses the game.} (35. Nxa5 $17 {keeps fighting.} Nb2 36. Kg2) 35... Kf5 $1 $19 {[%emt 0:00:11]} 36. Nc6 {[%emt 0:00:07]} Ke4 {[%emt 0:00:11]} 37. Nxa5 {[%emt 0:00:23]} Nb6 {[%emt 0:02:10]} 38. Nb3 {[%emt 0:01:18] [#]} Nd7 $1 {[%emt 0:00:06]} ({Stronger than} 38... Nxc4 39. Nxc5+ Kf3 40. Nd3 $11) 39. f4 {[%emt 0:00:45]} Kd3 {[%emt 0:00:12]} 40. Na5 {[%emt 0:00:00]} Nb6 {[%emt 0:00:00]} 41. Kf2 {[%emt 0:00:48]} Kd4 {[%emt 0:04:05]} ({Inferior is} 41... Nxc4 42. Nb3 $11) 42. Nc6+ $2 {[%emt 0:18:51]} (42. Nb7 {was necessary.} Nxc4 43. Ke2) 42... Kxc4 {[%emt 0:00:08]} 43. Ne5+ {[%emt 0:00:08] [#]} Kb3 $1 {[%emt 0:00:17]} 44. Nxf7 {[%emt 0:00:06]} c4 {[%emt 0:00:07][%cal Bc5c4,Bc4c3,Bc3c2][%mdl 32] And now ...c3 would win.} 45. Ne5 {[%emt 0:00:12]} c3 {[%emt 0:00:06] Threatens to win with ...c2.} 46. Nd3 $2 {[%emt 0:00:35]} (46. Nf3 Nc4 47. Nd4+ Kb2 48. Kf3) 46... c2 {[%emt 0:00:07] Black is clearly winning.} 47. Ke2 {[%emt 0:00:55]} Kc3 {[%emt 0:00:55]} 48. h3 {[%emt 0:06:13]} Nd7 {[%emt 0:05:21][%cal Od7c5]} 49. Ke3 {[%emt 0:01:37] [#]} Nc5 $1 {[%emt 0:00:15][%mdl 512]} 50. Nc1 {[%emt 0:00:08]} Kb2 {[%emt 0:00:30]} 51. Ne2 {[%emt 0:00:09]} Na4 {[%emt 0:00:14] ( -> ...Nc3)} 52. Kd4 {Against Nc3.  Weighted Error Value: White=0.64/Black=0.10 (very precise)} 0-1

[Event "VII Totalizator Sportowy 2022"]
[Site "Bydgoszcz"]
[Date "2022.06.28"]
[Round "4.12"]
[White "Prokofiev, Valentyn"]
[Black "Dubnevych, Maksym"]
[Result "1-0"]
[ECO "B31"]
[WhiteElo "2362"]
[BlackElo "2048"]
[Annotator "TA"]
[PlyCount "131"]
[EventDate "2022.06.25"]
[EventType "swiss"]
[EventCountry "POL"]
[SourceTitle "playchess.com"]
[Source "ChessBase"]
[SourceQuality "1"]
[TimeControl "40/5400+30:1800+30"]

{[%evp 9,131,29,27,18,27,25,51,52,50,33,18,12,14,0,0,0,19,18,23,-158,0,0,0,0,0,0,0,0,0,0,0,0,0,0,0,0,0,0,0,0,0,-6,80,89,87,77,149,102,132,137,145,141,155,144,153,170,172,136,146,146,140,81,99,77,97,77,119,108,208,208,208,185,185,186,192,192,188,194,185,98,97,98,102,8,8,8,63,65,69,69,296,296,1448,1448,1448,736,1337,1285,1445,1438,1423,1416,1380,1380,1325,1375,1372,1320,824,1082,29973,279,29969,29971,29956,12832,8064,7557,29982,29983,29986,29985,29986,29987]} 1. e4 {[%emt 0:00:02]} c5 {[%emt 0:00:05]} 2. Nf3 {[%emt 0:00:04]} Nc6 {[%emt 0:00:42]} 3. Bb5 {[%emt 0:00:02]} g6 {[%emt 0:00:06]} 4. Bxc6 dxc6 {[%emt 0:00:03]} 5. d3 {[%emt 0:00:17]} Qc7 6. h3 {[%emt 0:00:35] B31: Sicilian: 2...Nc6 3 Bb5 g6.} e5 {[%emt 0:00:21]} 7. Be3 {[%emt 0:00:05] [#]} Be7 $146 {[%emt 0:00:04]} ({Predecessor:} 7... f6 8. Qd2 Be6 9. a3 a5 10. Nc3 b6 11. Ng1 Bd6 12. Nge2 Ne7 13. f4 f5 {1-0 (83) Giri,A (2779)-Dubov,D (2700) Paris 2019}) 8. Qd2 {[%emt 0:05:21] White is slightly better.} Nf6 {[%emt 0:01:08]} 9. Qc3 {[%csl LRc5,LRe5]} Nd7 10. O-O {[%emt 0:05:15]} f6 {[%emt 0:01:42]} 11. Nfd2 {[%emt 0:03:40]} g5 {[%emt 0:02:31]} 12. a4 {[%emt 0:01:04]} a5 {[%emt 0:03:44]} 13. Na3 {[%emt 0:02:31]} b6 {[%emt 0:02:22]} 14. Nac4 $2 {[%emt 0:05:09]} (14. Ndc4 $11) 14... Nf8 $2 {[%emt 0:05:24]} (14... b5 $1 $17 15. axb5 cxb5) 15. Qb3 $11 {[%emt 0:02:36]} Rb8 {[%emt 0:00:10]} 16. c3 {[%emt 0:01:12]} Ng6 {[%emt 0:27:00]} 17. d4 {[%emt 0:01:50]} Be6 {[%emt 0:05:35] Against d5} 18. dxc5 {[%emt 0:02:57]} bxc5 {[%emt 0:00:53]} 19. Qa3 {[%emt 0:01:40]} Qa7 {[%emt 0:00:36]} 20. b4 {[%emt 0:13:11]} Qa6 {[%emt 0:01:37]} 21. b5 $1 {[%emt 0:00:08]} cxb5 {[%emt 0:00:06]} 22. axb5 {[%emt 0:00:01]} Rxb5 {[%emt 0:00:26]} 23. Nxa5 {[%emt 0:05:21]} O-O {[%emt 0:03:51][%cal Oc5c4]} 24. Nac4 {[%emt 0:02:54] Pair of Knights!} Qxa3 {[%emt 0:04:09]} 25. Rxa3 {[%emt 0:00:09][%cal Ba1a3,Ba3a7,Ba7e7][%mdl 32]} f5 {[%emt 0:01:03]} (25... Rd8 $11 {keeps the balance.}) 26. exf5 $16 {[%emt 0:00:53]} Bxf5 {[%emt 0:00:07]} 27. Ra7 {[%emt 0:00:35][%cal Oc4e5]} Bd3 {[%emt 0:12:38]} ({Black should try} 27... Rfb8) 28. Re1 {[%emt 0:02:40]} (28. Rfa1 $142) 28... e4 {[%emt 0:12:30] [#]} 29. Ne5 $1 {[%emt 0:02:14][%mdl 512]} Nxe5 {[%emt 0:02:54]} 30. Rxe7 {[%emt 0:00:04]} Ng6 {[%emt 0:00:08][%cal Be5g6,Bg6f4,Bf4e6,Be6c7,Bc7e8,Be8f6,Bf6e4][%mdl 32]} 31. Rc7 {[%emt 0:01:01]} Nf4 {[%emt 0:02:35]} 32. c4 {[%emt 0:01:33]} ({Resist} 32. Rxc5 $6 Rxc5 33. Bxc5 Rf5 $14) 32... Ra5 {[%emt 0:02:55]} 33. Bxc5 {[%emt 0:02:05]} Ne6 {[%emt 0:00:40]} 34. Bxf8 {[%emt 0:00:04] White is more active.} Nxc7 {[%emt 0:00:04]} 35. Bd6 {[%emt 0:03:53]} (35. Bh6 $142 $1) 35... Ne8 {[%emt 0:00:23]} 36. Bg3 {[%emt 0:01:08]} Nf6 {[%emt 0:00:12]} 37. Rc1 {[%emt 0:04:07] Threatens to win with c5.} Ra2 {[%emt 0:04:06] [#]} 38. Nf1 {[%emt 0:00:41]} Bxf1 {[%emt 0:01:54]} (38... Nd7 $16 {was called for.}) 39. Kxf1 {[%emt 0:00:16][%mdl 4096] Endgame KRB-KRN} ({Not} 39. Rxf1 Rc2 $14) 39... e3 {[%emt 0:04:26]} 40. fxe3 {[%emt 0:00:00] Strongly threatening c5.} Ne4 {[%emt 0:00:00]} 41. Be5 {[%emt 0:04:09]} Kf7 {[%emt 0:02:04]} 42. Kg1 {[%emt 0:01:11]} Ke6 {[%emt 0:04:57]} 43. Bd4 {[%emt 0:00:35]} Ng3 {[%emt 0:03:46] [#] aiming for ...Ne2+.} 44. Rb1 {[%emt 0:02:52]} (44. Kh2 $1 $18 {[%cal Rh2g3]} Ne2 45. Rb1) 44... Rc2 {[%emt 0:00:53]} 45. Rb6+ {[%emt 0:06:01]} Kf5 {[%emt 0:00:18]} 46. Rf6+ {[%emt 0:01:58]} (46. Rb5+ $16 Ke6 47. Be5) 46... Ke4 $11 {[%emt 0:00:13]} 47. h4 {[%emt 0:02:48]} Ne2+ {[%emt 0:05:54]} (47... gxh4 $11 48. Rf4+ Kd3 49. Rxh4 Rxc4) 48. Kh2 $1 $14 {[%emt 0:00:05]} Nxd4 {[%emt 0:06:38]} 49. exd4 {[%emt 0:00:10]} gxh4 {[%emt 0:02:44] KR-KR. This move loses the game for Black.} (49... Rxc4 $14 50. hxg5 Rxd4) 50. Rh6 $18 {[%emt 0:00:09][%csl LRh4,LRh7]} Kxd4 $2 {[%emt 0:02:59]} (50... Rxc4 51. Rxh7 Ke3) 51. Rxh7 {[%emt 0:00:10]} Ke5 {[%emt 0:00:49]} 52. Rxh4 {[%emt 0:00:09]} Kf5 {[%emt 0:00:13]} 53. Rh5+ {[%emt 0:00:30]} Ke6 {[%emt 0:00:22]} 54. c5 {[%emt 0:00:33]} Rc3 {[%emt 0:01:35]} 55. g3 {[%emt 0:00:18]} Kf6 {[%emt 0:00:17]} 56. Kh3 {[%emt 0:00:26]} Rc4 {[%emt 0:00:29]} 57. Rh6+ {[%emt 0:00:52]} Kg5 {[%emt 0:01:51]} 58. Rc6 {[%emt 0:00:07]} Rc1 {[%emt 0:00:26]} 59. Rc8 {[%emt 0:00:09]} Rh1+ {[%emt 0:00:52]} 60. Kg2 {[%emt 0:00:04]} Rh7 $2 {[%emt 0:00:24]} (60... Rc1 $18 61. c6 Kg6) 61. c6 {[%emt 0:00:54][%cal Bc5c6,Bc6c7][%mdl 32]} Rf7 {[%emt 0:00:06]} 62. Ra8 {[%emt 0:01:25]} (62. Rb8 $142 Rc7 63. Rb5+ Kf6 64. Rc5 Ke7 65. g4 Kd6 66. Rc2 Ke7 67. Kf3) 62... Rc7 {[%emt 0:00:10]} 63. Ra5+ {[%emt 0:00:04]} Kg4 {[%emt 0:00:03]} 64. Rc5 {[%emt 0:00:07] White mates.} Rh7 {[%emt 0:00:09]} 65. Rc4+ {[%emt 0:00:06]} Kg5 {[%emt 0:00:04]} 66. c7 {[%emt 0:00:03] Weighted Error Value: White=0.19 (very precise) /Black=0.27 (precise)} 1-0